[Event "*** Biggest EVER Titled Tuesday"]
[Site "Chess.com"]
[Date "2018.04.17"]
[Round "6"]
[White "GMAkobianSTL"]
[Black "nubair1198"]
[Result "1-0"]
[WhiteElo "2641"]
[BlackElo "2529"]
[TimeControl "180+2"]
[EndTime "14:22:18 PDT"]
[Termination "GMAkobianSTL won by resignation"]

1. d4 {[%clk 0:03:01.9]} 1... d5 {[%clk 0:03:00.2]} 2. c4 {[%clk 0:03:02.3]}
2... c6 {[%clk 0:03:01.6]} 3. cxd5 {[%clk 0:03:03.4]} 3... cxd5 {[%clk
0:03:03.5]} 4. Nf3 {[%clk 0:03:04.8]} 4... Nf6 {[%clk 0:03:04.9]} 5. Nc3 {[%clk
0:03:06.3]} 5... Nc6 {[%clk 0:03:06]} 6. Bf4 {[%clk 0:03:07.7]} 6... Ne4 {[%clk
0:03:07.4]} 7. e3 {[%clk 0:03:08.6]} 7... Nxc3 {[%clk 0:03:08]} 8. bxc3 {[%clk
0:03:09.7]} 8... e6 {[%clk 0:03:09.9]} 9. Bd3 {[%clk 0:03:09.8]} 9... Bd6 {[%clk
0:03:11.3]} 10. O-O {[%clk 0:03:09.5]} 10... O-O {[%clk 0:03:12.2]} 11. Re1
{[%clk 0:03:09.6]} 11... b6 {[%clk 0:03:13.1]} 12. Bg5 {[%clk 0:03:05.3]} 12...
Qc7 {[%clk 0:03:12]} 13. e4 {[%clk 0:03:05.5]} 13... dxe4 {[%clk 0:03:12.9]} 14.
Rxe4 {[%clk 0:03:03.7]} 14... h6 {[%clk 0:03:13.4]} 15. Bxh6 {[%clk 0:03:02.8]}
15... gxh6 {[%clk 0:03:10.2]} 16. Rf4 {[%clk 0:03:04]} 16... Kh8 {[%clk
0:03:11.8]} 17. Rh4 {[%clk 0:02:58.7]} 17... f5 {[%clk 0:03:06.3]} 18. Qd2
{[%clk 0:02:55.9]} 18... Rf6 {[%clk 0:03:00.6]} 19. Rxh6+ {[%clk 0:02:56.1]}
19... Rxh6 {[%clk 0:03:02.5]} 20. Qxh6+ {[%clk 0:02:56.7]} 20... Qh7 {[%clk
0:03:03.9]} 21. Qg5 {[%clk 0:02:52.9]} 21... Bd7 {[%clk 0:02:53.7]} 22. Qf6+
{[%clk 0:02:38]} 22... Qg7 {[%clk 0:02:52.8]} 23. Qh4+ {[%clk 0:02:38.2]} 23...
Qh7 {[%clk 0:02:47.1]} 24. Qf6+ {[%clk 0:02:39]} 24... Kg8 {[%clk 0:02:48.7]}
25. Bc4 {[%clk 0:02:29.9]} 25... Qf7 {[%clk 0:01:57.3]} 26. Qg5+ {[%clk
0:02:22.8]} 26... Kh8 {[%clk 0:01:15.9]} 27. Re1 {[%clk 0:02:21.6]} 27... Re8
{[%clk 0:00:53.9]} 28. g3 {[%clk 0:02:10.7]} 28... Qg7 {[%clk 0:00:52.8]} 29.
Qh5+ {[%clk 0:02:09.7]} 29... Qh7 {[%clk 0:00:53.3]} 30. Qg5 {[%clk 0:02:04.1]}
30... Qg7 {[%clk 0:00:47.3]} 31. Qd2 {[%clk 0:01:48]} 31... f4 {[%clk
0:00:47.3]} 32. Re4 {[%clk 0:01:46.2]} 32... Qg4 {[%clk 0:00:48.5]} 33. Ne5
{[%clk 0:01:43.6]} 33... Bxe5 {[%clk 0:00:11]} 34. dxe5 {[%clk 0:01:40.1]} 34...
Nxe5 {[%clk 0:00:10.8]} 35. Qd4 {[%clk 0:01:38.2]} 35... Bc6 {[%clk 0:00:06.1]}
36. Rxe5 {[%clk 0:01:36.2]} 36... Kg8 {[%clk 0:00:06.1]} 37. Qd6 {[%clk
0:01:33.7]} 37... Qf3 {[%clk 0:00:06.8]} 38. Bxe6+ {[%clk 0:01:34.1]} 38... Kg7
{[%clk 0:00:05.9]} 39. Rg5+ {[%clk 0:01:32.9]} 39... Kh6 {[%clk 0:00:06.8]} 40.
Bd5+ {[%clk 0:01:33.5]} 40... Kxg5 {[%clk 0:00:06.5]} 41. Bxf3 {[%clk
0:01:32.9]} 41... Re1+ {[%clk 0:00:04.6]} 42. Kg2 {[%clk 0:01:33.1]} 42... Bxf3+
{[%clk 0:00:06]} 43. Kxf3 {[%clk 0:01:34.1]} 43... fxg3 {[%clk 0:00:07.9]} 44.
hxg3 {[%clk 0:01:34.3]} 1-0

[Event "*** Biggest EVER Titled Tuesday"]
[Site "Chess.com"]
[Date "2018.04.17"]
[Round "6"]
[White "gmtalentoso"]
[Black "itisabigworld"]
[Result "0-1"]
[WhiteElo "2141"]
[BlackElo "2247"]
[TimeControl "180+2"]
[EndTime "14:22:19 PDT"]
[Termination "itisabigworld won by resignation"]

1. e4 {[%clk 0:03:01.9]} 1... d6 {[%clk 0:03:00.4]} 2. d4 {[%clk 0:03:01.6]}
2... Nf6 {[%clk 0:03:01.7]} 3. Nc3 {[%clk 0:03:02.1]} 3... g6 {[%clk 0:03:03]}
4. Bg5 {[%clk 0:03:03.2]} 4... Bg7 {[%clk 0:03:04.1]} 5. Qd2 {[%clk 0:03:03.8]}
5... c6 {[%clk 0:03:05.5]} 6. f4 {[%clk 0:03:03.4]} 6... Nbd7 {[%clk 0:03:05.8]}
7. Nf3 {[%clk 0:03:01.9]} 7... Qc7 {[%clk 0:03:06]} 8. Bd3 {[%clk 0:02:59.6]}
8... e5 {[%clk 0:03:05.4]} 9. Bxf6 {[%clk 0:02:40.9]} 9... Bxf6 {[%clk
0:03:05.4]} 10. fxe5 {[%clk 0:02:41]} 10... dxe5 {[%clk 0:03:06.6]} 11. d5
{[%clk 0:02:41.6]} 11... O-O {[%clk 0:02:51.9]} 12. O-O {[%clk 0:02:42]} 12...
Bg7 {[%clk 0:02:51.5]} 13. Kh1 {[%clk 0:02:39.1]} 13... Nb6 {[%clk 0:02:50.6]}
14. a4 {[%clk 0:02:35.5]} 14... cxd5 {[%clk 0:02:44.5]} 15. exd5 {[%clk
0:02:23.3]} 15... Qd6 {[%clk 0:02:41.2]} 16. a5 {[%clk 0:02:04.1]} 16... Nd7
{[%clk 0:02:40.7]} 17. Bc4 {[%clk 0:02:00.3]} 17... a6 {[%clk 0:02:26.3]} 18.
Ne4 {[%clk 0:01:57.1]} 18... Qc7 {[%clk 0:02:27]} 19. b3 {[%clk 0:01:55.1]}
19... Nc5 {[%clk 0:02:27.3]} 20. Nfg5 {[%clk 0:01:33.2]} 20... Nxe4 {[%clk
0:02:26.6]} 21. Nxe4 {[%clk 0:01:32.5]} 21... Bf5 {[%clk 0:02:22.8]} 22. Ng5
{[%clk 0:01:24.4]} 22... h6 {[%clk 0:02:22.6]} 23. d6 {[%clk 0:01:21.4]} 23...
Qd7 {[%clk 0:02:23.5]} 24. Nxf7 {[%clk 0:01:13.6]} 24... Rxf7 {[%clk 0:02:24.3]}
25. Qd5 {[%clk 0:01:10.5]} 25... Rf8 {[%clk 0:02:16.2]} 26. g4 {[%clk
0:01:02.2]} 26... Kh7 {[%clk 0:02:16.7]} 27. gxf5 {[%clk 0:01:00.4]} 27... gxf5
{[%clk 0:02:03.8]} 28. Rg1 {[%clk 0:00:54.2]} 28... Rf6 {[%clk 0:02:02.1]} 29.
Rad1 {[%clk 0:00:46.9]} 29... Rd8 {[%clk 0:02:02.6]} 30. Qxe5 {[%clk 0:00:41.6]}
30... Rg6 {[%clk 0:01:43.9]} 31. Qd5 {[%clk 0:00:34.8]} 31... Rxd6 {[%clk
0:01:41.3]} 32. Rxg7+ {[%clk 0:00:22]} 32... Qxg7 {[%clk 0:01:40.5]} 33. Qxf5+
{[%clk 0:00:21.2]} 33... Qg6 {[%clk 0:01:35.1]} 34. Rxd6 {[%clk 0:00:11.4]}
34... Qxf5 {[%clk 0:01:24.7]} 35. Rxd8 {[%clk 0:00:11.7]} 35... Qe4+ {[%clk
0:01:21.4]} 36. Kg1 {[%clk 0:00:12.2]} 36... Qg4+ {[%clk 0:01:18.2]} 37. Kf1
{[%clk 0:00:11]} 37... Qf5+ {[%clk 0:01:14.8]} 38. Ke1 {[%clk 0:00:11]} 38...
Qxa5+ {[%clk 0:01:12.7]} 39. Kd1 {[%clk 0:00:09.9]} 39... Qxd8+ {[%clk
0:01:12.5]} 0-1

[Event "*** Biggest EVER Titled Tuesday"]
[Site "Chess.com"]
[Date "2018.04.17"]
[Round "6"]
[White "Indianlad"]
[Black "Tash_Boy"]
[Result "0-1"]
[WhiteElo "2673"]
[BlackElo "2541"]
[TimeControl "180+2"]
[EndTime "14:22:20 PDT"]
[Termination "Tash_Boy won by resignation"]

1. d4 {[%clk 0:03:01.9]} 1... Nf6 {[%clk 0:02:59.5]} 2. Nc3 {[%clk 0:03:03.1]}
2... d5 {[%clk 0:02:58.9]} 3. Bf4 {[%clk 0:03:04.6]} 3... Bf5 {[%clk 0:02:56.7]}
4. f3 {[%clk 0:03:02.4]} 4... e6 {[%clk 0:02:54]} 5. g4 {[%clk 0:03:03.4]} 5...
Bg6 {[%clk 0:02:55.1]} 6. h4 {[%clk 0:03:04.4]} 6... h6 {[%clk 0:02:55.3]} 7. h5
{[%clk 0:03:03.6]} 7... Bh7 {[%clk 0:02:56]} 8. e3 {[%clk 0:03:05.2]} 8... c6
{[%clk 0:02:54.2]} 9. Bd3 {[%clk 0:03:06.2]} 9... Nbd7 {[%clk 0:02:54.2]} 10.
Bxh7 {[%clk 0:03:05.8]} 10... Nxh7 {[%clk 0:02:55]} 11. Nge2 {[%clk 0:03:06.9]}
11... Qb6 {[%clk 0:02:53.6]} 12. Qd3 {[%clk 0:03:06.7]} 12... c5 {[%clk
0:02:51.3]} 13. a4 {[%clk 0:02:59.6]} 13... c4 {[%clk 0:02:48.6]} 14. Qd2 {[%clk
0:02:59.5]} 14... Bb4 {[%clk 0:02:48.1]} 15. Kf2 {[%clk 0:02:58]} 15... O-O
{[%clk 0:02:11.9]} 16. Kg2 {[%clk 0:02:58.7]} 16... f5 {[%clk 0:02:09.4]} 17.
gxf5 {[%clk 0:02:38.1]} 17... Rxf5 {[%clk 0:02:05.6]} 18. Ng3 {[%clk 0:02:37.9]}
18... Rf7 {[%clk 0:02:05.8]} 19. Rh4 {[%clk 0:02:38.4]} 19... Kh8 {[%clk
0:01:52.5]} 20. Rg1 {[%clk 0:02:39.2]} 20... Raf8 {[%clk 0:01:51.4]} 21. Kh1
{[%clk 0:02:38.9]} 21... Be7 {[%clk 0:00:56.9]} 22. Rg4 {[%clk 0:02:38.4]} 22...
Bg5 {[%clk 0:00:57.8]} 23. Bxg5 {[%clk 0:02:38.7]} 23... Nxg5 {[%clk 0:00:59.7]}
24. f4 {[%clk 0:02:21.7]} 24... Nf3 {[%clk 0:00:58.1]} 25. Qg2 {[%clk 0:02:23]}
25... Nxg1 {[%clk 0:00:58.7]} 26. Nd1 {[%clk 0:02:19.3]} 26... Qc6 {[%clk
0:00:34.3]} 27. Qxg1 {[%clk 0:02:15.8]} 27... Qxa4 {[%clk 0:00:34]} 28. c3
{[%clk 0:02:03.7]} 28... Qc2 {[%clk 0:00:33]} 29. Nf2 {[%clk 0:02:05.2]} 29...
e5 {[%clk 0:00:29.9]} 30. Nh3 {[%clk 0:01:53.2]} 30... exd4 {[%clk 0:00:27.5]}
31. f5 {[%clk 0:01:45.7]} 31... Ne5 {[%clk 0:00:22.3]} 32. Rf4 {[%clk
0:01:37.1]} 32... d3 {[%clk 0:00:21.6]} 33. Rf1 {[%clk 0:01:32.6]} 33... d2
{[%clk 0:00:21.7]} 34. Nf4 {[%clk 0:01:34.1]} 34... Rxf5 {[%clk 0:00:20.6]} 35.
Nxf5 {[%clk 0:01:34.1]} 35... Qxf5 {[%clk 0:00:21.5]} 36. Ng6+ {[%clk
0:01:33.9]} 36... Nxg6 {[%clk 0:00:12.4]} 37. Rxf5 {[%clk 0:01:34.2]} 37... Rxf5
{[%clk 0:00:13.3]} 38. Qd1 {[%clk 0:01:34.3]} 38... Ne5 {[%clk 0:00:10.7]} 39.
Qxd2 {[%clk 0:01:26.2]} 39... Rxh5+ {[%clk 0:00:11.5]} 40. Kg2 {[%clk
0:01:24.9]} 40... Rh2+ {[%clk 0:00:12.2]} 0-1

[Event "*** Biggest EVER Titled Tuesday"]
[Site "Chess.com"]
[Date "2018.04.17"]
[Round "6"]
[White "2165149677570"]
[Black "PawnEatingZombie"]
[Result "0-1"]
[WhiteElo "2118"]
[BlackElo "2022"]
[TimeControl "180+2"]
[EndTime "14:22:21 PDT"]
[Termination "PawnEatingZombie won by checkmate"]

1. e4 {[%clk 0:03:01.5]} 1... c5 {[%clk 0:03:00.6]} 2. Nf3 {[%clk 0:03:02.7]}
2... Nc6 {[%clk 0:03:01.6]} 3. Bb5 {[%clk 0:03:03.9]} 3... d6 {[%clk 0:03:01.7]}
4. O-O {[%clk 0:03:05]} 4... Bd7 {[%clk 0:03:02.4]} 5. Re1 {[%clk 0:03:06.3]}
5... Nf6 {[%clk 0:03:03.7]} 6. c3 {[%clk 0:03:06.8]} 6... a6 {[%clk 0:03:05]} 7.
Bc4 {[%clk 0:03:08.3]} 7... Bg4 {[%clk 0:03:02.7]} 8. d3 {[%clk 0:03:00.4]} 8...
Ne5 {[%clk 0:02:42.8]} 9. Nxe5 {[%clk 0:03:01.4]} 9... dxe5 {[%clk 0:02:40.9]}
10. f3 {[%clk 0:02:59.2]} 10... Bc8 {[%clk 0:02:31.2]} 11. Be3 {[%clk
0:02:57.8]} 11... e6 {[%clk 0:02:28.9]} 12. a4 {[%clk 0:02:54.9]} 12... b6
{[%clk 0:02:23.1]} 13. Na3 {[%clk 0:02:45.1]} 13... Be7 {[%clk 0:02:23.2]} 14.
Nc2 {[%clk 0:02:43]} 14... O-O {[%clk 0:02:22.6]} 15. b4 {[%clk 0:02:44.4]}
15... Bb7 {[%clk 0:02:18.7]} 16. Rb1 {[%clk 0:02:35.2]} 16... Qd7 {[%clk
0:02:17.8]} 17. a5 {[%clk 0:02:20.5]} 17... b5 {[%clk 0:02:15.8]} 18. Ba2 {[%clk
0:02:21.5]} 18... Rac8 {[%clk 0:02:14.9]} 19. d4 {[%clk 0:01:49.5]} 19... cxd4
{[%clk 0:01:53.3]} 20. cxd4 {[%clk 0:01:49.9]} 20... exd4 {[%clk 0:01:45.5]} 21.
Nxd4 {[%clk 0:01:43.4]} 21... Rfd8 {[%clk 0:01:35.8]} 22. Qe2 {[%clk 0:01:18.6]}
22... Rc3 {[%clk 0:01:24.1]} 23. Red1 {[%clk 0:01:12.3]} 23... Qc8 {[%clk
0:01:16.6]} 24. Rdc1 {[%clk 0:00:59.9]} 24... Bd6 {[%clk 0:00:58.9]} 25. Bd2
{[%clk 0:00:42.6]} 25... Rxc1+ {[%clk 0:00:52.9]} 26. Rxc1 {[%clk 0:00:43.4]}
26... Qb8 {[%clk 0:00:54.3]} 27. Nc6 {[%clk 0:00:25.5]} 27... Bxc6 {[%clk
0:00:51.6]} 28. Rxc6 {[%clk 0:00:26.3]} 28... Bxh2+ {[%clk 0:00:53]} 29. Kh1
{[%clk 0:00:27.1]} 29... Nh5 {[%clk 0:00:54.4]} 30. Be1 {[%clk 0:00:22.1]} 30...
Ng3+ {[%clk 0:00:47.4]} 31. Bxg3 {[%clk 0:00:22]} 31... Bxg3 {[%clk 0:00:48.3]}
32. Qc2 {[%clk 0:00:14.3]} 32... Qf4 {[%clk 0:00:46.3]} 33. Kg1 {[%clk 0:00:09]}
33... Qe3+ {[%clk 0:00:34.4]} 34. Kh1 {[%clk 0:00:06.7]} 34... Qe1# {[%clk
0:00:34.4]} 0-1

[Event "*** Biggest EVER Titled Tuesday"]
[Site "Chess.com"]
[Date "2018.04.17"]
[Round "6"]
[White "colemman"]
[Black "HarutyunianTigranK"]
[Result "1-0"]
[WhiteElo "2520"]
[BlackElo "2676"]
[TimeControl "180+2"]
[EndTime "14:22:23 PDT"]
[Termination "colemman won by resignation"]

1. d4 {[%clk 0:03:01.9]} 1... Nf6 {[%clk 0:03:00.8]} 2. Nf3 {[%clk 0:03:03.2]}
2... d5 {[%clk 0:03:01.2]} 3. Nbd2 {[%clk 0:03:04.4]} 3... Bf5 {[%clk
0:02:57.7]} 4. c3 {[%clk 0:03:05.7]} 4... e6 {[%clk 0:02:58.4]} 5. Qb3 {[%clk
0:03:07.2]} 5... Qc8 {[%clk 0:02:50.3]} 6. Nh4 {[%clk 0:03:08.5]} 6... Bg4
{[%clk 0:02:48.4]} 7. h3 {[%clk 0:03:09.8]} 7... Bh5 {[%clk 0:02:49.4]} 8. g4
{[%clk 0:03:11.2]} 8... Bg6 {[%clk 0:02:50.5]} 9. Bg2 {[%clk 0:03:12.6]} 9...
Be7 {[%clk 0:02:51.1]} 10. Nxg6 {[%clk 0:03:11.4]} 10... hxg6 {[%clk 0:02:51.6]}
11. e4 {[%clk 0:03:12.8]} 11... dxe4 {[%clk 0:02:43.9]} 12. Nxe4 {[%clk
0:03:14.7]} 12... Nxe4 {[%clk 0:02:44.8]} 13. Bxe4 {[%clk 0:03:14.9]} 13... c6
{[%clk 0:02:46]} 14. Be3 {[%clk 0:03:11.5]} 14... Nd7 {[%clk 0:02:46.2]} 15.
O-O-O {[%clk 0:03:02.6]} 15... Qc7 {[%clk 0:02:47]} 16. Kb1 {[%clk 0:02:59.2]}
16... g5 {[%clk 0:02:47.7]} 17. Bg2 {[%clk 0:02:50.6]} 17... Nb6 {[%clk
0:02:05.6]} 18. c4 {[%clk 0:02:45.9]} 18... O-O-O {[%clk 0:02:02.1]} 19. a4
{[%clk 0:02:33.4]} 19... Nd7 {[%clk 0:01:52.3]} 20. Rd2 {[%clk 0:02:21.5]} 20...
Qb6 {[%clk 0:01:50.5]} 21. Qc2 {[%clk 0:02:15.4]} 21... Qb4 {[%clk 0:01:41.6]}
22. d5 {[%clk 0:01:58.7]} 22... Ne5 {[%clk 0:00:58.2]} 23. Rc1 {[%clk 0:01:45]}
23... Kb8 {[%clk 0:00:44.7]} 24. Bd4 {[%clk 0:01:38]} 24... Bf6 {[%clk
0:00:42.1]} 25. Bc3 {[%clk 0:01:27.5]} 25... Qe7 {[%clk 0:00:26]} 26. Bxe5+
{[%clk 0:01:01.7]} 26... Bxe5 {[%clk 0:00:27.9]} 27. Re1 {[%clk 0:01:01.3]}
27... Bf4 {[%clk 0:00:21.6]} 28. Rde2 {[%clk 0:00:52.6]} 28... cxd5 {[%clk
0:00:22.4]} 29. cxd5 {[%clk 0:00:53.6]} 29... Rc8 {[%clk 0:00:22.1]} 30. Qb3
{[%clk 0:00:48.3]} 30... e5 {[%clk 0:00:09.2]} 31. d6 {[%clk 0:00:48.7]} 31...
Qd7 {[%clk 0:00:10.4]} 32. Re4 {[%clk 0:00:49]} 32... Qxd6 {[%clk 0:00:05.3]}
33. Rxf4 {[%clk 0:00:46.9]} 1-0

[Event "*** Biggest EVER Titled Tuesday"]
[Site "Chess.com"]
[Date "2018.04.17"]
[Round "6"]
[White "Jbd735"]
[Black "Kozok"]
[Result "1-0"]
[WhiteElo "2304"]
[BlackElo "2214"]
[TimeControl "180+2"]
[EndTime "14:22:26 PDT"]
[Termination "Jbd735 won by checkmate"]

1. e4 {[%clk 0:03:01.9]} 1... c5 {[%clk 0:02:58.8]} 2. Nf3 {[%clk 0:03:02.1]}
2... d6 {[%clk 0:02:58.1]} 3. d4 {[%clk 0:03:02.6]} 3... cxd4 {[%clk 0:02:54.5]}
4. Nxd4 {[%clk 0:03:04.5]} 4... Nf6 {[%clk 0:02:54.8]} 5. Nc3 {[%clk 0:03:05.1]}
5... a6 {[%clk 0:02:55.8]} 6. Bg5 {[%clk 0:03:05.3]} 6... e6 {[%clk 0:02:55.7]}
7. f4 {[%clk 0:03:04.9]} 7... Be7 {[%clk 0:02:56.2]} 8. Qf3 {[%clk 0:03:04.9]}
8... Nbd7 {[%clk 0:02:57.1]} 9. Bc4 {[%clk 0:02:59.5]} 9... O-O {[%clk
0:02:16.6]} 10. O-O-O {[%clk 0:02:50.9]} 10... Nc5 {[%clk 0:02:15.9]} 11. e5
{[%clk 0:02:45.3]} 11... Ne8 {[%clk 0:02:09.4]} 12. h4 {[%clk 0:02:03.9]} 12...
d5 {[%clk 0:01:38.6]} 13. Bd3 {[%clk 0:01:38.7]} 13... Nxd3+ {[%clk 0:01:37.4]}
14. Rxd3 {[%clk 0:01:24.3]} 14... Qc7 {[%clk 0:01:30.1]} 15. f5 {[%clk
0:01:07.2]} 15... Bc5 {[%clk 0:01:17.5]} 16. Qf4 {[%clk 0:00:53.3]} 16... Bxd4
{[%clk 0:01:12.4]} 17. Qxd4 {[%clk 0:00:49.3]} 17... b5 {[%clk 0:01:06.6]} 18.
f6 {[%clk 0:00:48]} 18... Qc4 {[%clk 0:00:48.3]} 19. Qf2 {[%clk 0:00:35.2]}
19... b4 {[%clk 0:00:40.4]} 20. Ne2 {[%clk 0:00:30.6]} 20... Qxa2 {[%clk
0:00:40.4]} 21. Rhh3 {[%clk 0:00:21.4]} 21... Qa1+ {[%clk 0:00:36.8]} 22. Kd2
{[%clk 0:00:22.1]} 22... Qxb2 {[%clk 0:00:38.7]} 23. fxg7 {[%clk 0:00:21.2]}
23... Nxg7 {[%clk 0:00:38.2]} 24. Bf6 {[%clk 0:00:22.1]} 24... Bd7 {[%clk
0:00:20.4]} 25. Qg3 {[%clk 0:00:19.6]} 25... Qxc2+ {[%clk 0:00:09.3]} 26. Kxc2
{[%clk 0:00:20.1]} 26... Rfc8+ {[%clk 0:00:10.9]} 27. Kb2 {[%clk 0:00:20]} 27...
Rc2+ {[%clk 0:00:09.8]} 28. Kxc2 {[%clk 0:00:20.7]} 28... Rc8+ {[%clk
0:00:11.5]} 29. Kb2 {[%clk 0:00:21.5]} 29... Rc2+ {[%clk 0:00:13.2]} 30. Kxc2
{[%clk 0:00:22.5]} 30... Ba4+ {[%clk 0:00:14.9]} 31. Kb1 {[%clk 0:00:22.5]}
31... Bc2+ {[%clk 0:00:15.6]} 32. Kxc2 {[%clk 0:00:23.4]} 32... b3+ {[%clk
0:00:17.2]} 33. Kc1 {[%clk 0:00:23.5]} 33... b2+ {[%clk 0:00:17.5]} 34. Kxb2
{[%clk 0:00:24.3]} 34... Kh8 {[%clk 0:00:17.4]} 35. Qxg7# {[%clk 0:00:24.4]} 1-0

[Event "*** Biggest EVER Titled Tuesday"]
[Site "Chess.com"]
[Date "2018.04.17"]
[Round "6"]
[White "Margency"]
[Black "SabinoBrunello"]
[Result "1-0"]
[WhiteElo "2576"]
[BlackElo "2647"]
[TimeControl "180+2"]
[EndTime "14:22:29 PDT"]
[Termination "Margency won by resignation"]

1. e4 {[%clk 0:03:01.9]} 1... e5 {[%clk 0:03:00.5]} 2. Nf3 {[%clk 0:03:02.5]}
2... Nc6 {[%clk 0:03:01.4]} 3. Bc4 {[%clk 0:03:03.9]} 3... Bc5 {[%clk
0:03:00.6]} 4. d3 {[%clk 0:03:04.9]} 4... Nf6 {[%clk 0:03:01.1]} 5. O-O {[%clk
0:03:05.9]} 5... O-O {[%clk 0:03:01.7]} 6. h3 {[%clk 0:03:05.7]} 6... d6 {[%clk
0:02:51.5]} 7. c3 {[%clk 0:03:06.1]} 7... Bb6 {[%clk 0:02:44.7]} 8. Bb3 {[%clk
0:03:05.6]} 8... h6 {[%clk 0:02:44.4]} 9. Re1 {[%clk 0:03:05]} 9... Re8 {[%clk
0:02:39]} 10. Nbd2 {[%clk 0:03:04.5]} 10... Na5 {[%clk 0:02:34.1]} 11. Bc2
{[%clk 0:03:04.8]} 11... c5 {[%clk 0:02:35.6]} 12. Nf1 {[%clk 0:02:54]} 12...
Be6 {[%clk 0:02:32.8]} 13. Ng3 {[%clk 0:02:54]} 13... Nc6 {[%clk 0:02:31]} 14.
a3 {[%clk 0:02:42.5]} 14... d5 {[%clk 0:02:24.9]} 15. b4 {[%clk 0:02:25.1]}
15... dxe4 {[%clk 0:02:01.1]} 16. dxe4 {[%clk 0:02:25.2]} 16... Bc7 {[%clk
0:01:58.6]} 17. Qe2 {[%clk 0:02:18.4]} 17... c4 {[%clk 0:01:54]} 18. a4 {[%clk
0:02:16.3]} 18... a6 {[%clk 0:01:53.4]} 19. Be3 {[%clk 0:02:11.7]} 19... b5
{[%clk 0:01:52.8]} 20. Red1 {[%clk 0:02:11.6]} 20... Qc8 {[%clk 0:01:52.2]} 21.
Nh4 {[%clk 0:02:02.9]} 21... Ne7 {[%clk 0:01:46]} 22. Qf3 {[%clk 0:01:53.9]}
22... Nh7 {[%clk 0:01:46.1]} 23. Nhf5 {[%clk 0:01:53.5]} 23... f6 {[%clk
0:01:35]} 24. Nd6 {[%clk 0:01:47.4]} 24... Bxd6 {[%clk 0:01:33.7]} 25. Rxd6
{[%clk 0:01:49]} 25... Bf7 {[%clk 0:01:33.4]} 26. a5 {[%clk 0:01:46.7]} 26...
Rd8 {[%clk 0:01:24]} 27. Rad1 {[%clk 0:01:46.7]} 27... Rxd6 {[%clk 0:01:24.6]}
28. Rxd6 {[%clk 0:01:48.6]} 28... Qc7 {[%clk 0:01:25.8]} 29. Qd1 {[%clk
0:01:47.8]} 29... Nf8 {[%clk 0:01:24.1]} 30. Bb6 {[%clk 0:01:47]} 30... Qb7
{[%clk 0:01:24.4]} 31. Qg4 {[%clk 0:01:44.4]} 31... Re8 {[%clk 0:01:10.8]} 32.
Rxf6 {[%clk 0:01:29.7]} 32... Neg6 {[%clk 0:01:00.9]} 33. Rd6 {[%clk 0:01:27.3]}
33... Ne6 {[%clk 0:00:58.9]} 34. Nh5 {[%clk 0:01:16.4]} 34... Qe7 {[%clk
0:00:54.8]} 35. Rd2 {[%clk 0:01:13.8]} 35... Rf8 {[%clk 0:00:34.7]} 36. Bd1
{[%clk 0:00:51.6]} 36... Be8 {[%clk 0:00:33.9]} 37. Qg3 {[%clk 0:00:42.7]} 37...
Nef4 {[%clk 0:00:25.9]} 38. Bc5 {[%clk 0:00:32.4]} 1-0

[Event "*** Biggest EVER Titled Tuesday"]
[Site "Chess.com"]
[Date "2018.04.17"]
[Round "6"]
[White "AvitalBor"]
[Black "ChessQueen"]
[Result "1-0"]
[WhiteElo "2594"]
[BlackElo "2608"]
[TimeControl "180+2"]
[EndTime "14:22:48 PDT"]
[Termination "AvitalBor won by resignation"]

1. Nf3 {[%clk 0:03:01]} 1... Nf6 {[%clk 0:03:00.1]} 2. c4 {[%clk 0:03:01.4]}
2... b6 {[%clk 0:02:59.8]} 3. Nc3 {[%clk 0:03:02.4]} 3... Bb7 {[%clk 0:03:00.8]}
4. g3 {[%clk 0:03:03.3]} 4... e6 {[%clk 0:03:01.9]} 5. Bg2 {[%clk 0:03:04.2]}
5... Be7 {[%clk 0:03:03.4]} 6. O-O {[%clk 0:03:05.5]} 6... O-O {[%clk
0:03:04.5]} 7. Re1 {[%clk 0:03:04.9]} 7... d5 {[%clk 0:03:05.4]} 8. cxd5 {[%clk
0:03:06.1]} 8... exd5 {[%clk 0:03:06.6]} 9. d4 {[%clk 0:03:07.3]} 9... c5 {[%clk
0:03:07.7]} 10. Bf4 {[%clk 0:03:08.2]} 10... Na6 {[%clk 0:03:06.7]} 11. Rc1
{[%clk 0:03:08.5]} 11... Ne4 {[%clk 0:02:58.8]} 12. e3 {[%clk 0:02:59.9]} 12...
Nxc3 {[%clk 0:02:43.8]} 13. bxc3 {[%clk 0:02:56.5]} 13... g5 {[%clk 0:02:26.4]}
14. Nxg5 {[%clk 0:02:47.1]} 14... Bxg5 {[%clk 0:02:27]} 15. Qg4 {[%clk
0:02:44.5]} 15... h6 {[%clk 0:02:22.8]} 16. h4 {[%clk 0:02:43.9]} 16... f5
{[%clk 0:01:42]} 17. Qh5 {[%clk 0:02:42.6]} 17... Bxf4 {[%clk 0:01:43.1]} 18.
exf4 {[%clk 0:02:35.9]} 18... Qf6 {[%clk 0:01:36]} 19. Re5 {[%clk 0:02:34.7]}
19... Nc7 {[%clk 0:01:36]} 20. Rce1 {[%clk 0:02:33.6]} 20... Rf7 {[%clk
0:01:19.9]} 21. Bh3 {[%clk 0:02:03.1]} 21... Bc8 {[%clk 0:01:17.3]} 22. Kh2
{[%clk 0:02:01.4]} 22... Bd7 {[%clk 0:01:15.1]} 23. Bg2 {[%clk 0:02:00.2]} 23...
Kg7 {[%clk 0:01:06]} 24. dxc5 {[%clk 0:01:58.7]} 24... bxc5 {[%clk 0:01:06.4]}
25. c4 {[%clk 0:01:59.8]} 25... Rb8 {[%clk 0:00:57.3]} 26. cxd5 {[%clk
0:01:58.8]} 26... Rb2 {[%clk 0:00:58]} 27. R1e2 {[%clk 0:01:59.7]} 27... Rxe2
{[%clk 0:00:56]} 28. Qxe2 {[%clk 0:02:01.6]} 28... Nb5 {[%clk 0:00:51.1]} 29.
Qb2 {[%clk 0:01:41.1]} 29... Nd4 {[%clk 0:00:49.7]} 30. Qa3 {[%clk 0:01:41.9]}
30... Qb6 {[%clk 0:00:46.8]} 31. h5 {[%clk 0:01:27.9]} 31... Kf6 {[%clk
0:00:47.1]} 32. d6 {[%clk 0:01:20.3]} 32... Bc6 {[%clk 0:00:24]} 33. Qe3 {[%clk
0:00:57]} 33... Bxg2 {[%clk 0:00:21.5]} 34. Re6+ {[%clk 0:00:53.8]} 34... Kg7
{[%clk 0:00:20.6]} 35. Rg6+ {[%clk 0:00:45]} 35... Kf8 {[%clk 0:00:07.7]} 36. d7
{[%clk 0:00:41.4]} 36... Qd8 {[%clk 0:00:06.7]} 37. Qe8+ {[%clk 0:00:37.7]}
37... Qxe8 {[%clk 0:00:07.8]} 38. Rg8+ {[%clk 0:00:38.6]} 38... Kxg8 {[%clk
0:00:09.2]} 39. dxe8=Q+ {[%clk 0:00:38.9]} 39... Rf8 {[%clk 0:00:10.4]} 40. Qg6+
{[%clk 0:00:36.8]} 1-0